[Event "SVK ECo-C Extraliga 2021-22"]
[Site "Slovakia"]
[Date "2022.05.09"]
[Round "8.5"]
[White "Kravec, Patrik"]
[Black "Varga Zoltan"]
[Result "0-1"]
[ECO "B03"]
[WhiteElo "2152"]
[BlackElo "2395"]
[Annotator "TA"]
[PlyCount "113"]
[EventDate "2021.10.21"]
[EventType "team-tourn"]
[EventCountry "SVK"]
[SourceTitle "playchess.com"]
[Source "ChessBase"]
[SourceQuality "1"]
[TimeControl "40/5400+30:1800+30"]

{[%evp 12,113,31,26,60,31,54,53,62,35,49,34,49,31,42,45,56,50,53,47,61,78,90,96,106,79,182,189,188,37,36,24,34,43,53,0,0,-11,0,-36,-38,-24,-21,-27,-31,-43,-15,-20,-6,-3,0,-37,6,0,51,28,49,0,0,-20,0,0,0,-7,-7,-13,-14,-44,-41,-77,-77,-66,-33,-40,-28,-80,-52,-95,-14,-63,-53,-63,-18,-104,-16,-45,0,0,0,-19,0,-173,-138,-208,-157,-162,-162,-257,-153,-297,-289,-789,-787,-29996]} 1. e4 {[%emt 0:00:48][%cal Be2e4,Be4e5][%mdl 32]} Nf6 {[%emt 0:00:08]} 2. e5 {[%emt 0:00:04]} Nd5 {[%emt 0:00:03]} 3. d4 {[%emt 0:00:25]} d6 {[%emt 0:01:01]} 4. c4 {[%emt 0:00:21][%cal Bc2c4,Bc4c5][%mdl 32]} Nb6 {[%emt 0:00:06]} 5. exd6 {[%emt 0:00:04]} exd6 {[%emt 0:03:56]} 6. Nc3 {[%emt 0:00:28]} Be7 {[%emt 0:00:11]} 7. Bd3 {[%emt 0:00:25]} c6 {[%emt 0:00:09] 7...0-0 is becoming the main line. B03: Alekhine's Defence: Four Pawns Attack.} 8. Nge2 {[%emt 0:01:03]} d5 {[%emt 0:00:08]} 9. c5 {[%emt 0:05:23]} N6d7 {[%emt 0:00:06] [#] White is slightly better.} 10. Rb1 $146 {[%emt 0:00:53]} ({Predecessor:} 10. Bf4 O-O 11. O-O Re8 12. b4 Nf8 {½-½ (12) Horvath,A (2476)-Varga,Z (2528) Kallithea 2002}) 10... a5 {[%emt 0:04:06]} 11. a3 {[%emt 0:01:41][%cal Ba2a3,Ba3b4,Bb4c5][%mdl 32]} b6 {[%emt 0:01:58]} 12. b4 {[%emt 0:01:09]} axb4 {[%emt 0:00:07]} 13. axb4 {[%emt 0:00:07]} bxc5 {[%emt 0:00:02]} 14. bxc5 {[%emt 0:02:13]} O-O {[%emt 0:01:21]} 15. O-O {[%emt 0:00:49]} Bf6 {[%emt 0:00:05]} 16. Bf4 {[%emt 0:10:13]} g6 {[%emt 0:04:04]} 17. h3 {[%emt 0:03:03]} Re8 {[%emt 0:02:22]} 18. Qd2 {[%emt 0:01:56]} Ba6 {[%emt 0:22:49]} (18... Na6 $16) 19. Ra1 $18 {[%emt 0:05:01]} Qc8 {[%emt 0:00:05]} 20. Rfb1 $2 {[%emt 0:01:15] [#]} (20. Ra4 $18) 20... Bxd3 $14 {[%emt 0:00:38]} 21. Qxd3 {[%emt 0:02:08]} ({Reject} 21. Rxa8 Bxb1 22. Nxb1 Qb7 $17) 21... Rxa1 {[%emt 0:00:59]} 22. Rxa1 {[%emt 0:00:05]} Nf8 {[%emt 0:00:04]} 23. Rb1 {[%emt 0:06:04]} (23. Ra7 $14) 23... Nbd7 $11 {[%emt 0:01:15]} 24. Na4 {[%emt 0:04:40]} Qa8 {[%emt 0:01:25]} 25. Nec3 {[%emt 0:04:32]} Ne6 {[%emt 0:05:57]} 26. Be3 {[%emt 0:00:31]} Rb8 {[%emt 0:00:06] White must now prevent ...Rxb1+.} (26... Qa5 {is more complex.} 27. Rb7 Rd8 28. g3 Ndxc5 29. dxc5 Bg7) 27. Rxb8+ {[%emt 0:12:40]} (27. Nb6 {seems wilder.} Nxb6 28. Rxb6 Qa1+ 29. Nd1) 27... Nxb8 {[%emt 0:05:01]} 28. Qd1 {[%emt 0:09:11]} Qa6 {[%emt 0:02:39]} 29. Nb6 {[%emt 0:07:39]} Qa3 {[%emt 0:07:27]} 30. Ne2 {[%emt 0:03:23]} Qb2 {[%emt 0:03:28]} 31. Qd3 {[%emt 0:02:27]} Kf8 {[%emt 0:02:24]} 32. Kh2 {[%emt 0:02:03]} (32. g4 {keeps more tension.} Qa1+ 33. Kg2 Kg8 34. Qb3) 32... Ke8 {[%emt 0:00:28]} ({Black should play} 32... Bd8 $11) 33. Nc8 {[%emt 0:04:27]} Kf8 {[%emt 0:03:06]} 34. Nb6 {[%emt 0:01:30]} (34. Nd6 $14) 34... Bd8 {[%emt 0:01:16]} 35. Na4 {[%emt 0:02:04]} Qb4 {[%emt 0:03:25]} 36. Nac3 {[%emt 0:01:07]} Bf6 {[%emt 0:00:11]} 37. Na2 {[%emt 0:02:03]} Qb7 {[%emt 0:06:05]} 38. Nac3 {[%emt 0:01:41]} Na6 {[%emt 0:00:30]} 39. Na4 {[%emt 0:00:56]} Nac7 {[%emt 0:02:19]} 40. Nac3 {[%emt 0:02:17]} Qb3 {[%emt 0:01:40]} 41. Qd2 {[%emt 0:03:41]} h5 {[%emt 0:11:37]} (41... Qc4 $5 {[%cal Rc7b5]}) 42. Na2 {[%emt 0:08:29]} Ke8 {[%emt 0:01:55]} 43. Nac3 {[%emt 0:08:50]} (43. Nb4 $11) 43... Kd7 {[%emt 0:01:37]} 44. g3 {[%emt 0:01:10]} Na6 {[%emt 0:01:03]} (44... Qc4 $17) 45. Na2 {[%emt 0:00:45]} (45. Qa2 $1 $11 Qxa2 46. Nxa2) 45... Qc4 $15 {[%emt 0:01:41] 0x0.00288eea591bdp-1022s more active pieces.} 46. Kg2 {[%emt 0:01:06]} Bd8 {[%emt 0:03:35][%cal Bf6d8,Bd8c7,Bc7a5][%mdl 32]} 47. Qb2 {[%emt 0:01:13]} (47. Nac1 $11) 47... Qb5 {[%emt 0:00:57]} (47... Nac7 $17 {...Bf6 is the strong threat.} 48. Nac3 Bf6) 48. Qc2 {[%emt 0:02:21]} Bc7 {[%emt 0:02:04]} 49. Qd2 {[%emt 0:02:57]} Qc4 {[%emt 0:01:18]} 50. h4 {[%emt 0:04:33]} Kc8 {[%emt 0:00:14]} 51. Kf3 $2 {[%emt 0:00:30]} (51. Ng1 $11 {and White has nothing to worry.}) 51... Nexc5 {[%emt 0:03:18]} 52. Nac3 {[%emt 0:00:41]} (52. Kg2 $17 Ne6 53. Ng1) 52... Ne6 {[%emt 0:00:44]} 53. Kg2 {[%emt 0:00:21]} Ba5 {[%emt 0:01:07]} 54. Qb2 {[%emt 0:01:30]} (54. Qa2 {keeps fighting.} Qxa2 55. Nxa2) 54... Nac7 {[%emt 0:00:51]} (54... Bxc3 $19 55. Nxc3 Nxd4) 55. Nd1 {[%emt 0:00:31]} (55. Qa1 $17 {was worth a try.} Bb4 56. Na2) 55... Nb5 $19 {[%emt 0:01:20] [#] Threatens to win with ...Qd3.} 56. Kf3 $2 {[%emt 0:00:32]} (56. Nf4 Nexd4 57. Bxd4 Qxd4 58. Qe2) 56... Qd3 {[%emt 0:01:29][%csl Gd5][%cal Rd3e4]} 57. Nf4 {[%emt 0:00:28] What a bad dream for White.  Weighted Error Value: White=0.43/Black=0.22 (precise)} 0-1

[Event "SVK ECo-C Extraliga 2021-22"]
[Site "Slovakia"]
[Date "2022.05.08"]
[Round "8.5"]
[White "Vrbova, Niki"]
[Black "Mikes, Jan"]
[Result "0-1"]
[ECO "B15"]
[WhiteElo "2120"]
[BlackElo "2349"]
[Annotator "TA"]
[PlyCount "78"]
[EventDate "2021.10.21"]
[EventType "team-tourn"]
[EventCountry "SVK"]
[SourceTitle "playchess.com"]
[Source "ChessBase"]
[SourceQuality "1"]
[TimeControl "40/5400+30:1800+30"]

{[%evp 15,78,0,14,9,29,12,16,0,0,0,0,0,0,-15,0,0,31,0,29,-10,-6,-18,0,4,15,-18,0,0,0,-2,0,0,12,-9,-14,-18,-18,-72,-74,-100,-102,-119,-95,-106,-105,-107,-113,-168,-91,-160,-166,-278,-270,-258,-160,-370,-369,-423,-416,-387,-414,-557,-541,-533,-538]} 1. e4 {[%emt 0:00:14]} c6 {[%emt 0:00:11]} 2. d4 {[%emt 0:01:51]} d5 {[%emt 0:00:05]} 3. Nd2 {[%emt 0:00:17]} dxe4 {[%emt 0:00:05]} 4. Nxe4 {[%emt 0:00:06]} Nf6 {[%emt 0:00:06]} 5. Nxf6+ {[%emt 0:00:47]} exf6 {[%emt 0:00:04]} 6. Nf3 {[%emt 0:01:36]} Bd6 {[%emt 0:00:21]} 7. Bd3 {[%emt 0:02:37] The main line 7.Bd3 scores better than 7.Be2.} O-O {[%emt 0:00:09]} 8. O-O {[%emt 0:00:07]} Re8 {[%emt 0:01:01]} 9. Re1 {[%emt 0:09:54] B15: Caro-Kann: 3 Nc3: 3...g6 and 3...dxe4 4 Nxe4 Nf6 5 Nxf6+ exf6.} Be6 {[%emt 0:01:06]} 10. c3 {[%emt 0:03:30]} Nd7 {[%emt 0:00:34]} 11. Bc2 {[%emt 0:01:04] [#] The position is equal.} Nf8 $146 {[%emt 0:00:46]} ({Predecessor:} 11... Qa5 12. Qd3 Qh5 13. Re4 Bd5 14. Rxe8+ Rxe8 15. Kf1 Bxf3 16. Qxf3 Qxh2 17. g4 Nb6 {½-½ (47) Lacey,E-Ventimiglia,C IECC email 1998}) 12. Qd3 {[%emt 0:04:43]} Qd7 {[%emt 0:05:25]} 13. Bd2 {[%emt 0:03:50]} Bc7 {[%emt 0:05:26]} 14. b3 {[%emt 0:09:06]} Qd6 {[%emt 0:02:02]} 15. g3 {[%emt 0:04:43]} Qd7 {[%emt 0:04:30]} 16. Nh4 {[%emt 0:04:17]} g6 {[%emt 0:01:59]} 17. Re3 {[%emt 0:12:37]} (17. f4 $5 {[%cal Rf4f5]}) 17... Rad8 {[%emt 0:04:11][%cal Oc6c5]} 18. Rae1 {[%emt 0:00:49]} Qc8 {[%emt 0:06:51]} 19. Qe2 {[%emt 0:05:10]} Bg4 {[%emt 0:02:09]} 20. Qc4 {[%emt 0:08:00]} Re6 {[%emt 0:03:41]} 21. Rxe6 {[%emt 0:01:10]} Nxe6 {[%emt 0:02:00]} 22. Be4 {[%emt 0:06:31]} Qd7 {[%emt 0:07:28]} 23. Bg2 {[%emt 0:01:52]} g5 {[%emt 0:08:10]} 24. h3 {[%emt 0:09:21]} (24. Nf3 $5 {[%cal Rd4d5]}) 24... gxh4 {[%emt 0:02:43]} 25. hxg4 {[%emt 0:00:07]} hxg3 {[%emt 0:00:05]} 26. fxg3 {[%emt 0:02:21]} (26. Qf1 $11) 26... Bxg3 $17 {[%emt 0:01:55][%cal Bc7g3,Bg3h4,Bh4g5][%mdl 32]} 27. Re4 {[%emt 0:02:31]} Bh4 {[%emt 0:06:30][%cal Oc6c5]} 28. Qe2 {[%emt 0:01:33]} Bg5 {[%emt 0:00:58]} 29. Be3 {[%emt 0:01:27]} Qd6 {[%emt 0:04:37]} 30. Qf3 {[%emt 0:00:23]} Kg7 {[%emt 0:00:56]} 31. Qf2 {[%emt 0:00:43]} (31. Bf2 $17) 31... Nf8 {[%emt 0:02:08]} (31... h6 $19 32. Bf3 b6) 32. Qf5 {[%emt 0:01:26] [#]} (32. Bf4 $142 Bxf4 33. Qxf4) 32... h6 $1 {[%emt 0:00:29][%cal Bh7h6,Bh6g5][%mdl 32]} 33. Bf4 {[%emt 0:00:29] [#]} (33. Kf1 $142) 33... Qa3 $1 $19 {[%emt 0:02:10]} 34. Re2 {[%emt 0:00:05]} Ng6 {[%emt 0:02:05]} 35. Bxg5 {[%emt 0:00:21]} (35. Bc7 $17 Qc1+ 36. Kh2) 35... hxg5 {[%emt 0:01:26]} 36. Qc2 {[%emt 0:02:10] Prevents Qc1+.} Qd6 {[%emt 0:00:41] ...Qg3 is the strong threat.} ({Don't blunder} 36... Nf4 $2 37. Re3 $19) 37. Re3 {[%emt 0:00:32]} Rh8 {[%emt 0:00:32]} 38. Rh3 {[%emt 0:00:33]} Rxh3 {[%emt 0:00:13]} 39. Bxh3 {[%emt 0:00:04]} Qg3+ {[%emt 0:00:05] Weighted Error Value: White=0.30/Black=0.11 (very precise)} 0-1

[Event "SVK ECo-C Extraliga 2021-22"]
[Site "Slovakia"]
[Date "2022.05.09"]
[Round "8.6"]
[White "Lipka, Juraj"]
[Black "Berta, Sandor"]
[Result "1-0"]
[ECO "E02"]
[WhiteElo "2379"]
[BlackElo "2062"]
[Annotator "TA"]
[PlyCount "87"]
[EventDate "2021.10.21"]
[EventType "team-tourn"]
[EventCountry "SVK"]
[SourceTitle "playchess.com"]
[Source "ChessBase"]
[SourceQuality "1"]
[TimeControl "40/5400+30:1800+30"]

{[%evp 15,87,10,56,43,53,43,83,71,76,63,83,58,62,57,62,61,59,57,73,71,68,62,74,73,75,87,75,83,157,94,115,79,78,72,88,53,56,45,68,62,68,77,79,72,72,71,129,138,329,308,321,316,398,381,456,441,455,427,641,641,649,645,666,635,597,593,800,803,846,835,3165,2598,4938,4938]} 1. d4 {[%emt 0:00:04]} d5 {[%emt 0:00:21]} 2. Nf3 {[%emt 0:00:19]} Nf6 {[%emt 0:00:28]} 3. c4 {[%emt 0:00:08]} c6 {[%emt 0:00:28]} 4. g3 {[%emt 0:00:22]} e6 {[%emt 0:04:57]} 5. Bg2 {[%emt 0:01:16]} Be7 {[%emt 0:01:07]} 6. O-O {[%emt 0:00:21]} O-O {[%emt 0:00:15]} 7. Qc2 {[%emt 0:02:40]} dxc4 {[%emt 0:08:22] 7...b6 is becoming the main line.} 8. Qxc4 {[%emt 0:00:36]} Nbd7 {[%emt 0:01:14]} (8... b5 $11 9. Qd3 Nbd7) 9. Rd1 {[%emt 0:05:56] E02: Open Catalan: 5 Qa4+.} Qa5 {[%emt 0:13:16]} 10. Bf4 {[%emt 0:16:50]} Nd5 {[%emt 0:19:03]} 11. Bd2 {[%emt 0:01:28] [#] White is better.} Qb5 $146 {[%emt 0:09:31]} ({Predecessor:} 11... N7b6 12. Qb3 Qa4 13. Qxa4 Nxa4 14. b3 Nab6 15. e4 Nb4 16. a3 Na6 17. Nc3 Nc7 {1-0 (65) Michalski,D (2154)-Demjen,A (2053) Brest 2012}) 12. Qxb5 {[%emt 0:02:13]} cxb5 {[%emt 0:00:08]} 13. Nc3 {[%emt 0:01:31]} Nxc3 {[%emt 0:06:17]} 14. Bxc3 {[%emt 0:03:31]} Nb6 {[%emt 0:01:23]} 15. Ne5 {[%emt 0:00:51]} f6 {[%emt 0:00:30]} 16. Nd3 {[%emt 0:00:30]} a5 {[%emt 0:05:23]} 17. Rac1 {[%emt 0:07:31]} Rd8 {[%emt 0:03:56]} 18. Nc5 {[%emt 0:04:55]} b4 {[%emt 0:04:59]} 19. Be1 {[%emt 0:00:33]} Bxc5 {[%emt 0:13:08]} 20. dxc5 {[%emt 0:10:15][%mdl 64] [#] Discovered Attack} Rxd1 {[%emt 0:00:30]} 21. Rxd1 {[%emt 0:00:30]} Nc4 {[%emt 0:00:30]} ({Black should try} 21... Nd7) 22. b3 {[%emt 0:00:30]} (22. Rd8+ $142 Kf7 23. f4) 22... Ne5 $16 {[%emt 0:01:23]} 23. Rd6 {[%emt 0:03:59] Against Nc6} Kf8 {[%emt 0:02:09]} 24. f4 {[%emt 0:01:02]} Nf7 {[%emt 0:00:16]} 25. Rb6 {[%emt 0:01:00]} Nd8 $1 {[%emt 0:00:17]} 26. g4 {[%emt 0:02:07]} Ke7 {[%emt 0:00:48]} 27. g5 $36 {[%emt 0:00:46][%mdl 2048] White is more active.} Ra6 {[%emt 0:02:29]} 28. Rxa6 {[%emt 0:01:55] 0x0.000a7ad55c9edp-1022s more active pieces. The black rooks are badly placed.} bxa6 {[%emt 0:00:01]} 29. gxf6+ {[%emt 0:05:24]} gxf6 $14 {[%emt 0:00:02][%mdl 4096] Endgame KBB-KBN} 30. Bh4 {[%emt 0:00:36]} Kf7 {[%emt 0:01:40]} ({Black should play} 30... Nb7) 31. c6 $16 {[%emt 0:01:41] Black must now prevent Bf2.} Kg7 $2 {[%emt 0:00:36] This move loses the game for Black.} (31... Ke7 $16 32. Be4 h6) 32. Bf2 $18 {[%emt 0:01:59]} Nf7 {[%emt 0:00:27]} 33. Bb6 {[%emt 0:01:04]} e5 {[%emt 0:00:34]} 34. fxe5 {[%emt 0:04:49]} fxe5 {[%emt 0:00:14]} 35. Bxa5 {[%emt 0:00:17] White is clearly winning.} Nd6 {[%emt 0:00:29]} 36. Bxb4 {[%emt 0:00:35]} Nb5 {[%emt 0:00:10]} (36... Ne8 $142 37. e4 Kf7) 37. e3 {[%emt 0:02:56]} Kf6 {[%emt 0:00:17]} 38. a4 {[%emt 0:01:21]} Nc7 {[%emt 0:00:30]} 39. Bd6 {[%emt 0:02:54]} Ne8 {[%emt 0:00:37]} 40. Bc5 {[%emt 0:00:20]} Nc7 {[%emt 0:00:57]} 41. b4 {[%emt 0:32:15][%cal Bb3b4,Bb4b5,Bb5b6][%mdl 32]} Bg4 {[%emt 0:03:33]} 42. Bf1 {[%emt 0:00:00]} Bd1 {[%emt 0:01:20]} 43. b5 {[%emt 0:00:00] [#] Hoping for b6.} Bxa4 {[%emt 0:01:15]} 44. b6 {[%emt 0:00:00] Weighted Error Value: White=0.09 (flawless) /Black=0.30} 1-0

[Event "SVK ECo-C Extraliga 2021-22"]
[Site "Slovakia"]
[Date "2022.05.09"]
[Round "8.6"]
[White "Czebe, Attila"]
[Black "Pcola, Jaroslav"]
[Result "1-0"]
[ECO "C00"]
[WhiteElo "2366"]
[BlackElo "2044"]
[Annotator "TA"]
[PlyCount "120"]
[EventDate "2021.10.21"]
[EventType "team-tourn"]
[EventCountry "SVK"]
[SourceTitle "playchess.com"]
[Source "ChessBase"]
[SourceQuality "1"]
[TimeControl "40/5400+30:1800+30"]

{[%evp 15,120,-3,0,0,19,0,0,0,0,0,0,-32,0,-24,20,0,0,-10,0,-17,0,0,0,0,0,0,0,0,12,8,7,8,19,15,13,15,10,0,0,0,0,0,4,-32,0,0,0,0,12,8,11,0,0,0,0,0,0,0,0,0,0,0,0,0,0,0,2,0,0,0,0,0,0,0,0,0,5,0,0,0,5,0,0,0,5,0,5,0,9,0,0,0,0,0,0,0,0,0,0,0,0,0,0,0,10,10,39]} 1. e4 {[%emt 0:00:44]} e6 {[%emt 0:00:52]} 2. d3 {[%emt 0:00:09]} d5 {[%emt 0:01:04]} 3. Nd2 {[%emt 0:00:05]} Nf6 {[%emt 0:00:53]} 4. Ngf3 {[%emt 0:00:08]} c5 {[%emt 0:01:50]} 5. g3 {[%emt 0:00:05]} Nc6 {[%emt 0:01:04]} 6. Bg2 {[%emt 0:00:05]} Be7 {[%emt 0:02:11]} 7. O-O {[%emt 0:00:08]} h6 {[%emt 0:03:28]} 8. Re1 {[%emt 0:00:23]} Qc7 {[%emt 0:01:22]} 9. exd5 {[%emt 0:07:25] C00: French: Unusual White 2nd moves.} exd5 {[%emt 0:02:45]} 10. Nf1 {[%emt 0:00:36]} O-O {[%emt 0:02:16]} 11. Bf4 {[%emt 0:00:16]} Bd6 {[%emt 0:00:47]} 12. Bxd6 {[%emt 0:00:08]} Qxd6 {[%emt 0:00:02]} 13. Qd2 {[%emt 0:02:05]} Be6 {[%emt 0:05:42] [#]} 14. c3 $146 {[%emt 0:04:41]} ({Predecessor:} 14. Re2 Rad8 15. Rae1 d4 16. a3 Nd7 17. h3 c4 18. Rc1 cxd3 19. cxd3 Nc5 20. Qd1 Bb3 21. Qd2 Ba4 22. Rb1 Qg6 23. Ne5 Nxe5 24. Rxe5 Nxd3 25. Be4 Nxe5 {0-1 (25) Loschi,E-Boscolo,F Caorle 1991}) 14... b6 {[%emt 0:05:13]} 15. Ne3 {[%emt 0:01:42]} Rad8 {[%emt 0:06:59]} 16. Nc2 {[%emt 0:02:27]} Rfe8 {[%emt 0:09:26]} 17. h3 {[%emt 0:02:45]} Bc8 {[%emt 0:05:08]} 18. Rxe8+ {[%emt 0:00:37]} Rxe8 {[%emt 0:01:20]} 19. Re1 {[%emt 0:00:03]} Rxe1+ {[%emt 0:01:25]} 20. Qxe1 {[%emt 0:00:28]} Bf5 {[%emt 0:05:11]} 21. Qd1 {[%emt 0:05:26]} Ne7 {[%emt 0:08:29]} 22. Ne3 {[%emt 0:01:13]} Bd7 {[%emt 0:00:40]} 23. d4 {[%emt 0:00:28]} Nf5 {[%emt 0:04:32] Strongly threatening ...Nxe3.} 24. Nxf5 {[%emt 0:04:50]} Bxf5 {[%emt 0:00:03]} 25. Qe2 {[%emt 0:02:56]} Be6 {[%emt 0:13:35]} 26. Qe5 {[%emt 0:01:20]} Qxe5 {[%emt 0:02:21]} 27. Nxe5 {[%emt 0:00:05]} cxd4 {[%emt 0:04:51]} 28. cxd4 $11 {[%emt 0:00:07][%mdl 4096] Endgame KBN-KBN} Kf8 {[%emt 0:02:20]} 29. b4 {[%emt 0:09:17]} a6 {[%emt 0:02:56]} 30. Bf1 {[%emt 0:04:23] The position is equal.} Bc8 {[%emt 0:00:40]} 31. f3 {[%emt 0:02:17]} Bb7 {[%emt 0:01:31]} 32. Kf2 {[%emt 0:00:31]} Ke7 {[%emt 0:01:13]} 33. Ke3 {[%emt 0:00:13]} Ne8 {[%emt 0:00:52]} 34. h4 {[%emt 0:02:18]} Nd6 {[%emt 0:01:23]} 35. Bh3 {[%emt 0:01:38] Inhibits Nf5+.} f6 {[%emt 0:00:51]} 36. Ng6+ {[%emt 0:00:47]} Kf7 {[%emt 0:01:25]} 37. h5 {[%emt 0:01:13]} a5 {[%emt 0:01:10]} 38. bxa5 {[%emt 0:00:09]} bxa5 {[%emt 0:00:15]} 39. Bd7 {[%emt 0:03:42]} Nc4+ {[%emt 0:01:01]} 40. Kf2 {[%emt 0:07:11]} Nb6 {[%emt 0:00:33]} 41. Bb5 {[%emt 0:30:37]} Nc8 {[%emt 0:13:23]} 42. Nf4 {[%emt 0:00:00]} Ke7 {[%emt 0:00:56]} 43. Ke3 {[%emt 0:00:00]} Nd6 {[%emt 0:03:01]} 44. Bd3 {[%emt 0:00:00]} Bc6 {[%emt 0:00:36]} 45. Kf2 {[%emt 0:00:00]} Kd7 {[%emt 0:02:22]} 46. Ke2 {[%emt 0:00:00]} Ke7 {[%emt 0:00:06]} 47. Ke3 {[%emt 0:00:00]} Kd7 {[%emt 0:00:12]} 48. Ke2 {[%emt 0:00:00]} Ke7 {[%emt 0:00:10]} 49. Kd2 {[%emt 0:00:00]} Kd7 {[%emt 0:01:32]} 50. Bc2 {[%emt 0:00:00]} Nc4+ {[%emt 0:02:22]} 51. Kc3 {[%emt 0:00:00]} Kd6 {[%emt 0:04:02]} 52. Bf5 {[%emt 0:00:00]} Ne3 {[%emt 0:03:29]} 53. Bd3 {[%emt 0:00:00]} Bd7 {[%emt 0:03:24]} 54. g4 {[%emt 0:04:24]} f5 {[%emt 0:00:28]} 55. Kd2 {[%emt 0:01:30]} Nc4+ {[%emt 0:00:30]} 56. Bxc4 {[%emt 0:00:19]} dxc4 {[%emt 0:00:05]} 57. gxf5 {[%emt 0:01:34]} Bxf5 {[%emt 0:00:02]} 58. Kc3 {[%emt 0:00:04]} Bb1 {[%emt 0:00:39]} 59. a3 {[%emt 0:00:03]} Ba2 {[%emt 0:00:20]} 60. Ng2 {[%emt 0:00:06]} Bb1 {[%emt 0:03:12] A rather calm draw.  Weighted Error Value: White=0.04 (flawless) /Black=0.04 (flawless)} 1-0

[Event "SVK ECo-C Extraliga 2021-22"]
[Site "Slovakia"]
[Date "2022.05.08"]
[Round "8.6"]
[White "Motuz, Karol"]
[Black "Nguyen, Piotr"]
[Result "0-1"]
[ECO "E70"]
[WhiteElo "2315"]
[BlackElo "2402"]
[Annotator "TA"]
[PlyCount "64"]
[EventDate "2021.10.21"]
[EventType "team-tourn"]
[EventCountry "SVK"]
[SourceTitle "playchess.com"]
[Source "ChessBase"]
[SourceQuality "1"]
[TimeControl "40/5400+30:1800+30"]

{[%evp 11,64,40,25,27,44,39,47,49,55,70,72,74,90,64,54,58,58,10,28,22,22,17,59,0,2,0,35,36,96,70,103,83,83,79,135,125,128,127,121,137,131,130,159,0,0,-69,-59,-68,-72,-56,-58,-59,-55,-66,-55]} 1. d4 {[%emt 0:00:04]} Nf6 {[%emt 0:00:34]} 2. c4 {[%emt 0:00:25]} g6 {[%emt 0:00:06]} 3. Nc3 {[%emt 0:00:20]} Bg7 {[%emt 0:00:06]} 4. e4 {[%emt 0:00:44]} d6 {[%emt 0:00:05]} 5. Nge2 {[%emt 0:01:06]} O-O {[%emt 0:01:11]} 6. Ng3 {[%emt 0:00:13]} h5 {[%emt 0:00:05] 6...a6 is setting a new trend.} 7. Be2 {[%emt 0:03:04] E70: King's Indian: Miscellaneous lines with 4 e4, including 5 Nge2 and 5 Bd3 0-0 6 Nge2.} c5 {[%emt 0:04:20]} 8. d5 $1 {[%emt 0:01:48]} b5 {[%emt 0:08:21]} 9. cxb5 {[%emt 0:05:33] White is slightly better.} ({Don't play} 9. Nxb5 h4 10. Nf1 (10. e5 hxg3 11. exf6 gxf2+ 12. Kxf2 Bxf6 $11) 10... Nxe4 $11) 9... a6 {[%emt 0:08:22]} 10. Bg5 {[%emt 0:04:46]} axb5 {[%emt 0:10:36]} 11. Bxb5 {[%emt 0:01:41] [#]} Qb6 $146 {[%emt 0:04:14]} ({Predecessor:} 11... Ba6 12. Bxa6 Nxa6 13. Qd2 Qb6 14. O-O Nc7 15. Rac1 Rfb8 16. b3 Qb4 17. f3 Nb5 {1-0 (67) Nikolaidis,I (2517)-Kouskoutis,G (2365) Thessaloniki 2017}) 12. a4 {[%emt 0:05:02]} Na6 {[%emt 0:07:03]} 13. Rb1 {[%emt 0:11:31]} Nc7 {[%emt 0:01:34]} 14. Be2 {[%emt 0:15:21]} (14. Bc6 $14) 14... e6 {[%emt 0:08:08]} 15. O-O {[%emt 0:04:56]} exd5 {[%emt 0:09:03]} 16. exd5 {[%emt 0:01:04]} Re8 {[%emt 0:01:28]} 17. Qd2 {[%emt 0:09:50]} (17. Bc4 $14) 17... Qb4 $1 $11 {[%emt 0:03:15]} 18. h4 {[%emt 0:06:43]} Rb8 {[%emt 0:14:45]} (18... Nfxd5 $2 19. Nxd5 Qxd2 20. Nxc7 $18) 19. Rfd1 {[%emt 0:06:44]} Bb7 {[%emt 0:07:48]} ({Black should try} 19... Bd7 $14) 20. Nb5 {[%emt 0:08:03]} Qxd2 {[%emt 0:02:56]} 21. Rxd2 {[%emt 0:02:00]} Nxb5 {[%emt 0:01:47]} 22. Bxb5 {[%emt 0:00:01]} Re5 {[%emt 0:01:51]} (22... Rf8 $142) 23. Bf4 $16 {[%emt 0:00:59]} Rxd5 {[%emt 0:01:12]} 24. Rxd5 {[%emt 0:00:35]} ({But not} 24. Bxd6 Rxd2 25. Bxb8 Ng4) 24... Nxd5 {[%emt 0:00:13]} 25. Bxd6 {[%emt 0:00:11]} Rc8 {[%emt 0:00:33]} 26. Ne4 {[%emt 0:02:00]} Bd4 {[%emt 0:01:53]} 27. Bd7 $2 {[%emt 0:04:52]} (27. Rd1 $16) 27... Rd8 $1 $11 {[%emt 0:01:23]} 28. Bxc5 {[%emt 0:00:38] [#]} Nf4 $1 $15 {[%emt 0:00:20]} 29. Bxd4 {[%emt 0:03:54]} Ne2+ {[%emt 0:00:46]} 30. Kf1 {[%emt 0:00:31]} Bxe4 {[%emt 0:00:04] Black is slightly better.} 31. Rd1 {[%emt 0:00:22] And now Bf6 would win.} ({Not} 31. Kxe2 $2 Bxb1 32. Ke3 Rxd7 $19) 31... Nxd4 {[%emt 0:00:24]} 32. Rxd4 {[%emt 0:00:28]} Bf5 {[%emt 0:00:32] Weighted Error Value: White=0.24 (precise) /Black=0.11 (very precise)} 0-1